bitfinex-derivatives/quotes_BNBF0:USTF0_20251203
["timestamp","ask_amount","ask_price","bid_price","bid_amount"]
[1764729313167,0.69432984,887.65,885.95,2.78018106]
[1764729313362,0.69432984,887.64,885.96,2.78018106]
[1764729313568,0.69432984,887.63,885.96,2.78018106]
[1764729313766,0.19613479,887.67,885.96,2.78018106]
[1764729313767,0.69432984,887.62,885.96,2.78018106]
[1764729313963,0.19613479,887.67,885.96,2.78018106]
[1764729314264,0.69436233,887.66,885.96,2.78018106]
[1764729314467,0.69436233,887.65,885.96,2.78018106]
[1764729314666,0.69436233,887.64,885.96,2.78018106]
[1764729314867,0.69436233,887.63,885.96,2.78018106]
[1764729315067,0.69436233,887.62,885.94,2.78018106]
[1764729315365,0.69436233,887.61,885.94,2.78018106]
[1764729315569,0.69436233,887.6,885.88,2.78018106]
[1764729315866,0.69436233,887.59,885.88,2.78018106]
[1764729316069,0.69436233,887.58,885.88,2.78018106]
[1764729316364,0.69436233,887.57,885.88,2.78018106]
[1764729316668,0.69436233,887.56,885.89,2.78018106]
[1764729316866,0.69436233,887.55,885.89,2.78018106]
[1764729317066,0.69436233,887.54,885.89,2.78018106]
[1764729317366,0.69436233,887.53,885.89,2.78018106]
[1764729317569,0.69436233,887.52,885.83,2.78018106]
[1764729317769,0.69436233,887.51,885.83,2.78018106]
[1764729317967,0.69436233,887.5,885.83,2.78018106]
[1764729318266,0.69436233,887.49,885.83,2.78018106]
[1764729318471,0.69436233,887.48,885.83,2.78018106]
[1764729318671,0.69436233,887.47,885.84,2.78018106]
[1764729318966,0.69436233,887.46,885.84,2.78018106]
[1764729319170,0.69436233,887.45,885.85,2.78018106]
[1764729319371,0.69436233,887.44,885.85,2.78018106]
[1764729319568,0.69436233,887.43,885.79,2.78018106]
[1764729319869,0.69436233,887.42,885.79,2.78018106]
[1764729320068,0.84182233,887.49,885.79,2.78018106]
[1764729320069,0.69436233,887.41,885.79,2.78018106]
[1764729320267,0.69436233,887.4,885.8,2.78018106]
[1764729320470,0.69436233,887.39,885.8,2.78018106]
[1764729320672,0.69436233,887.38,885.8,2.78018106]
[1764729320868,0.69436233,887.37,885.8,2.78018106]
[1764729321067,0.69436233,887.36,885.8,2.78018106]
[1764729321270,1.11707841,887.65,885.49,3.89225349]
[1764729321271,0.69436233,887.35,885.81,2.78018106]
[1764729321466,0.69436233,887.34,885.81,2.78018106]
[1764729321669,0.69436233,887.33,885.81,2.78018106]
[1764729321867,0.69436233,887.32,885.81,2.78018106]
[1764729322073,0.69436233,887.31,885.81,2.78018106]
[1764729322270,0.69436233,887.3,885.77,2.78018106]
[1764729322469,0.69436233,887.29,885.77,2.78018106]
[1764729322671,0.69436233,887.28,885.77,2.78018106]
[1764729322873,0.69436233,887.27,885.78,2.78018106]
[1764729323169,0.69436233,887.26,885.78,2.78018106]
[1764729323371,0.69436233,887.25,885.77,2.78018106]
[1764729323575,0.69436233,887.24,885.77,2.78018106]
[1764729323776,0.69436233,887.23,885.76,2.78018106]
[1764729323976,0.69436233,887.22,885.76,2.78018106]
[1764729324177,0.69436233,887.21,885.76,2.78018106]
[1764729324378,0.69436233,887.2,885.76,2.78018106]
[1764729324577,0.69436233,887.19,885.76,2.78018106]
[1764729324875,0.69436233,887.18,885.76,2.78018106]
[1764729325077,0.69436233,887.17,885.76,2.78018106]
[1764729325377,0.84182233,887.46,885.76,2.78018106]
[1764729325679,0.69360906,887.45,885.76,2.78018106]
[1764729325978,0.69360906,887.44,885.87,2.78018106]
[1764729326174,0.69360906,887.43,885.87,2.78018106]
[1764729326374,0.69360906,887.42,885.87,2.78018106]
[1764729326577,0.69360906,887.41,885.87,2.78018106]
[1764729326776,0.69360906,887.4,885.87,2.78018106]
[1764729326974,0.69360906,887.39,885.87,2.78018106]
[1764729327186,0.69360906,887.38,885.87,2.78018106]
[1764729327374,0.69360906,887.37,885.87,2.78018106]
[1764729327675,0.69360906,887.36,885.87,2.78018106]
[1764729327876,0.69360906,887.35,885.87,2.78018106]
[1764729328074,0.69360906,887.34,885.87,2.78018106]
[1764729328374,0.69360906,887.33,885.87,2.78018106]
[1764729328673,0.69360906,887.32,885.76,2.78018106]
[1764729328876,0.69360906,887.31,885.76,2.78018106]
[1764729329076,0.69360906,887.3,885.76,2.78018106]
[1764729329378,0.69360906,887.29,885.76,2.78018106]
[1764729329572,0.69360906,887.28,885.76,2.78018106]
[1764729329776,0.69360906,887.27,885.75,2.78018106]
[1764729329975,0.69360906,887.26,885.75,2.78018106]
[1764729330174,0.69360906,887.25,885.75,2.78018106]
[1764729330378,0.69360906,887.24,885.68,2.78018106]
[1764729330578,0.69360906,887.23,885.68,2.78018106]
[1764729330876,0.19613479,887.67,885.36,3.89225349]
[1764729330877,0.69360906,887.22,885.66,2.78018106]
[1764729331074,0.69360906,887.21,885.66,2.78018106]
[1764729331278,0.69360906,887.2,885.65,2.78018106]
[1764729331473,0.69360906,887.19,885.65,2.78018106]
[1764729331676,0.69360906,887.18,885.65,2.78018106]
[1764729331878,0.69360906,887.17,885.63,2.78018106]
[1764729332079,0.69360906,887.16,885.63,2.78018106]
[1764729332279,0.69360906,887.15,885.63,2.78018106]
[1764729332483,0.84182233,887.33,885.63,2.78018106]
[1764729332484,0.69360906,887.14,885.63,2.78018106]
[1764729332678,0.69360906,887.13,885.63,2.78018106]
[1764729332978,0.69360906,887.12,885.63,2.78018106]
[1764729333178,0.69360906,887.11,885.63,2.78018106]
[1764729333382,0.69360906,887.1,885.59,2.78018106]
[1764729333683,0.69360906,887.09,885.59,2.78018106]
[1764729333883,0.69360906,887.08,885.47,2.78018106]
[1764729334083,0.69360906,887.07,885.47,2.78018106]
[1764729334383,0.69360906,887.06,885.4,2.78018106]
[1764729334679,0.69360906,887.05,885.4,2.78018106]
[1764729334983,0.69360906,887.04,885.4,2.78018106]
[1764729335183,0.69360906,887.03,885.4,2.78018106]
[1764729335482,0.69360906,887.02,885.45,2.78018106]
[1764729335680,0.69360906,887.01,885.45,2.78018106]
[1764729335980,0.69360906,887.0,885.45,2.78018106]
[1764729336282,0.69360906,887.0,885.13,3.89225349]
[1764729336283,0.69360906,886.99,885.33,2.78018106]
[1764729336478,0.69360906,886.98,885.33,2.78018106]
[1764729336679,0.69360906,886.97,885.33,2.78018106]
[1764729336883,0.69360906,886.96,885.33,2.78018106]
[1764729337083,0.69360906,886.95,885.33,2.78018106]
[1764729337281,0.69360906,886.94,885.33,2.78018106]
[1764729337480,0.71488985,886.93,885.11,2.78018106]
[1764729337685,0.71488985,886.92,885.11,2.78018106]
[1764729337883,0.71488985,886.91,885.11,2.78018106]
[1764729338185,0.8419194,886.84,885.11,2.78018106]
[1764729338485,0.71488985,886.83,885.08,0.19616133]
[1764729338686,0.71488985,886.82,885.08,0.19616133]
[1764729338883,0.71488985,886.81,885.08,0.19616133]
[1764729339085,0.71488985,886.8,885.08,0.19616133]
[1764729339284,0.8419194,887.02,885.08,0.19616133]
[1764729339486,0.74272874,887.01,885.19,2.78018106]
[1764729339687,0.74272874,887.0,885.19,2.78018106]
[1764729339884,0.74272874,886.99,885.19,2.78018106]
[1764729340185,0.74272874,886.98,885.2,2.78018106]
[1764729340386,0.74272874,886.97,885.2,2.78018106]
[1764729340585,0.74272874,886.96,885.27,2.78018106]
[1764729340790,0.74272874,886.95,885.27,2.78018106]
[1764729341090,0.8419194,887.24,885.27,2.78018106]
[1764729341390,0.71275718,887.23,885.27,2.78018106]
[1764729341593,0.71275718,887.22,885.35,2.78018106]
[1764729341788,0.71275718,887.21,885.35,2.78018106]
[1764729342086,0.71275718,887.2,885.35,2.78018106]
[1764729342288,0.71275718,887.19,885.35,2.78018106]
[1764729342485,0.19613479,887.67,885.35,2.78018106]
[1764729342486,0.71275718,887.18,885.35,2.78018106]
[1764729342687,0.71275718,887.17,885.45,2.78018106]
[1764729342888,0.71275718,887.16,885.45,2.78018106]
[1764729343085,0.71275718,887.15,885.45,2.78018106]
[1764729343289,0.8419194,887.44,885.45,2.78018106]
[1764729343486,0.70131141,887.43,885.45,2.78018106]
[1764729343685,0.70131141,887.42,885.49,2.78018106]
[1764729343887,0.70131141,887.41,885.49,2.78018106]
[1764729344086,0.70131141,887.4,885.56,2.78018106]
[1764729344289,0.70131141,887.39,885.56,2.78018106]
[1764729344490,0.70131141,887.38,885.56,2.78018106]
[1764729344686,0.70131141,887.37,885.56,2.78018106]
[1764729344988,0.70131141,887.36,885.56,2.78018106]
[1764729345189,0.70131141,887.35,885.56,2.78018106]
[1764729345385,0.70131141,887.34,885.46,2.78018106]
[1764729345590,0.70131141,887.33,885.46,2.78018106]
[1764729345790,0.8419194,887.37,885.08,0.19616133]
[1764729345791,0.70131141,887.32,885.39,2.78018106]
[1764729345993,0.70131141,887.31,885.39,2.78018106]
[1764729346188,0.70131141,887.3,885.39,2.78018106]
[1764729346490,0.70131141,887.29,885.38,2.78018106]
[1764729346692,0.70131141,887.28,885.38,2.78018106]
[1764729346886,0.70131141,887.27,885.38,2.78018106]
[1764729347088,0.70131141,887.26,885.38,2.78018106]
[1764729347288,0.70131141,887.25,885.38,2.78018106]
[1764729347588,0.70131141,887.24,885.37,2.78018106]
[1764729347889,0.70131141,887.23,885.38,2.78018106]
[1764729348094,0.70131141,887.22,885.38,2.78018106]
[1764729348294,0.70131141,887.21,885.38,2.78018106]
[1764729348594,0.70131141,887.2,885.38,2.78018106]
[1764729348794,0.70131141,887.19,885.38,2.78018106]
[1764729348995,0.70131141,887.18,885.37,2.78018106]
[1764729349195,0.70131141,887.17,885.37,2.78018106]
[1764729349391,0.70131141,887.16,885.27,2.78018106]
[1764729349694,0.8419194,887.25,885.27,2.78018106]
[1764729349695,0.70131141,887.15,885.27,2.78018106]
[1764729349895,0.70131141,887.14,885.27,2.78018106]
[1764729350091,0.70131141,887.13,885.27,2.78018106]
[1764729350294,0.70131141,887.12,885.27,2.78018106]
[1764729350492,0.70131141,887.11,885.26,2.78018106]
[1764729350692,0.70131141,887.1,885.26,2.78018106]
[1764729350894,0.70131141,887.09,885.26,2.78018106]
[1764729351092,0.70131141,887.08,885.26,2.78018106]
[1764729351291,0.70131141,887.07,885.26,2.78018106]
[1764729351496,0.70131141,887.06,885.25,2.78018106]
[1764729351696,0.70131141,887.05,885.25,2.78018106]
[1764729351892,0.70131141,887.04,885.25,2.78018106]
[1764729352096,0.70131141,887.03,885.26,2.78018106]
[1764729352298,0.70131141,887.02,885.26,2.78018106]
[1764729352498,0.70131141,887.01,885.27,2.78018106]
[1764729352699,1.67561761,887.61,885.27,2.78018106]
[1764729352700,0.8419194,887.32,885.27,2.78018106]
[1764729352898,0.70175711,887.31,885.27,2.78018106]
[1764729353099,0.70175711,887.3,885.3,2.78018106]
[1764729353394,0.70175711,887.29,885.3,2.78018106]
[1764729353597,0.70175711,887.28,885.27,2.78018106]
[1764729353898,0.70175711,887.27,885.27,2.78018106]
[1764729354096,0.70175711,887.26,885.27,2.78018106]
[1764729354298,0.70175711,887.25,885.28,2.78018106]
[1764729354495,0.70175711,887.24,885.28,2.78018106]
[1764729354699,0.70175711,887.24,885.08,0.19616133]
[1764729354700,0.70175711,887.23,885.26,2.78018106]
[1764729354901,0.70175711,887.22,885.26,2.78018106]
[1764729355101,0.70175711,887.21,885.26,2.78018106]
[1764729355300,0.70175711,887.2,885.26,2.78018106]
[1764729355499,0.70175711,887.19,885.26,2.78018106]
[1764729355698,0.70175711,887.18,885.24,2.78018106]
[1764729355998,0.70175711,887.17,885.24,2.78018106]
[1764729356196,0.70175711,887.16,885.23,2.78018106]
[1764729356401,0.70175711,887.15,885.23,2.78018106]
[1764729356600,0.70175711,887.14,885.23,2.78018106]
[1764729356802,0.70175711,887.13,885.23,2.78018106]
[1764729357002,0.70175711,887.12,885.23,2.78018106]
[1764729357202,0.70175711,887.11,885.23,2.78018106]
[1764729357502,0.70175711,887.1,885.23,2.78018106]
[1764729357697,0.70175711,887.09,885.23,2.78018106]
[1764729358002,0.70175711,887.08,885.24,2.78018106]
[1764729358301,0.70175711,887.07,885.24,2.78018106]
[1764729358498,0.70175711,887.06,885.24,2.78018106]
[1764729358800,0.70175711,887.05,885.24,2.78018106]
[1764729359097,0.70175711,887.04,885.24,2.78018106]
[1764729359302,0.8419194,887.35,885.28,2.78018106]
[1764729359502,0.70131575,887.34,885.28,2.78018106]
[1764729359703,0.70131575,887.33,885.28,2.78018106]
[1764729359902,0.70131575,887.32,885.32,2.78018106]
[1764729360099,0.70131575,887.31,885.32,2.78018106]
[1764729360304,0.70131575,887.3,885.32,2.78018106]
[1764729360504,0.70131575,887.29,885.4,2.78018106]
[1764729360704,0.70131575,887.28,885.4,2.78018106]
[1764729361006,0.70131575,887.27,885.45,2.78018106]
[1764729361204,0.70131575,887.26,885.45,2.78018106]
[1764729361400,0.8419194,887.52,885.45,2.78018106]
[1764729361401,0.70131575,887.25,885.45,2.78018106]
[1764729361603,0.70131575,887.24,885.45,2.78018106]
[1764729361805,0.70131575,887.23,885.45,2.78018106]
[1764729362003,0.8419194,887.52,885.45,2.78018106]
[1764729362307,1.54317138,887.51,885.45,2.78018106]
[1764729362506,0.70125198,887.5,885.52,2.78018106]
[1764729362706,0.70125198,887.49,885.52,2.78018106]
[1764729363006,0.70125198,887.48,885.52,2.78018106]
[1764729363209,0.70125198,887.47,885.52,2.78018106]
[1764729363404,0.70125198,887.46,885.52,2.78018106]
[1764729363603,0.70125198,887.45,885.52,2.78018106]
[1764729363809,0.70125198,887.44,885.52,2.78018106]
[1764729364107,0.70125198,887.43,885.53,2.78018106]
[1764729364308,0.70125198,887.42,885.53,2.78018106]
[1764729364509,0.70125198,887.41,885.53,2.78018106]
[1764729364705,0.70125198,887.4,885.53,2.78018106]
[1764729364910,0.70125198,887.39,885.53,2.78018106]
[1764729365206,0.70125198,887.38,885.53,2.78018106]
[1764729365411,0.19613479,887.67,885.53,2.78018106]
[1764729365615,0.70127781,887.66,885.68,2.78018106]
[1764729365909,0.70127781,887.65,885.68,2.78018106]
[1764729366209,0.70127781,887.64,885.64,2.78018106]
[1764729366405,0.70127781,887.63,885.64,2.78018106]
[1764729366608,0.70127781,887.62,885.64,2.78018106]
[1764729366811,0.70127781,887.61,885.64,2.78018106]
[1764729367006,0.70127781,887.6,885.64,2.78018106]
[1764729367208,0.70127781,887.59,885.64,2.78018106]
[1764729367408,0.70127781,887.58,885.64,2.78018106]
[1764729367606,0.70127781,887.57,885.64,2.78018106]
[1764729367806,0.70127781,887.56,885.63,2.78018106]
[1764729368006,0.70127781,887.55,885.63,2.78018106]
[1764729368208,0.70127781,887.54,885.76,2.78018106]
[1764729368410,0.19613479,887.67,885.76,2.78018106]
[1764729368611,0.70112233,887.66,885.76,2.78018106]
[1764729368910,0.70112233,887.65,885.76,2.78018106]
[1764729369110,0.70112233,887.64,885.76,2.78018106]
[1764729369309,0.19611269,887.85,885.85,2.78018106]
[1764729369513,0.70092241,887.76,885.85,2.78018106]
[1764729369813,0.70092241,887.75,885.88,2.78018106]
[1764729370013,0.19611269,887.85,885.88,2.78018106]
[1764729370014,0.70092241,887.74,885.88,2.78018106]
[1764729370310,0.70092241,887.73,885.88,2.78018106]
[1764729370515,0.70092241,887.72,885.88,2.78018106]
[1764729370816,0.70092241,887.71,885.91,2.78018106]
[1764729371015,0.19611269,887.85,885.91,2.78018106]
[1764729371212,0.70076341,887.76,885.9,2.78018106]
[1764729371416,0.19611269,887.85,885.9,2.78018106]
[1764729371918,0.19611269,887.85,885.94,2.78018106]
[1764729372820,0.70046797,887.76,885.88,2.78018106]
[1764729373019,0.70046797,887.75,885.88,2.78018106]
[1764729373224,0.70046797,887.74,885.88,2.78018106]
[1764729373516,0.19611269,887.85,885.58,3.89225349]
[1764729373517,0.70046797,887.73,885.77,2.78018106]
[1764729373820,0.70046797,887.72,885.77,2.78018106]
[1764729374119,0.70046797,887.71,885.77,2.78018106]
[1764729374316,0.70046797,887.7,885.77,2.78018106]
[1764729374616,0.70046797,887.69,885.76,2.78018106]
[1764729374916,0.70046797,887.68,885.7,2.78018106]
[1764729375121,0.70046797,887.67,885.7,2.78018106]
[1764729375316,0.70046797,887.66,885.7,2.78018106]
[1764729375520,0.70046797,887.65,885.65,2.78018106]
[1764729375717,0.70046797,887.64,885.65,2.78018106]
[1764729376018,0.70046797,887.63,885.66,2.78018106]
[1764729376219,0.70046797,887.62,885.66,2.78018106]
[1764729376421,0.70046797,887.61,885.66,2.78018106]
[1764729376724,0.70046797,887.6,885.67,2.78018106]
[1764729377023,0.19611269,887.85,885.35,3.89225349]
[1764729377024,0.70046797,887.59,885.68,2.78018106]
[1764729377219,0.70046797,887.58,885.68,2.78018106]
[1764729377423,0.70046797,887.57,885.68,2.78018106]
[1764729377626,0.70046797,887.56,885.71,2.78018106]
[1764729377825,0.19611269,887.85,885.71,2.78018106]
[1764729378027,0.70054548,887.76,885.73,2.78018106]
[1764729378221,0.70054548,887.75,885.73,2.78018106]
[1764729378425,0.70054548,887.74,885.73,2.78018106]
[1764729378624,0.19611269,887.85,885.73,2.78018106]
[1764729378625,0.70054548,887.73,885.73,2.78018106]
[1764729378825,0.70054548,887.72,885.73,2.78018106]
[1764729379020,0.70054548,887.71,885.77,2.78018106]
[1764729379226,0.70054548,887.7,885.77,2.78018106]
[1764729379527,0.19611269,887.85,885.77,2.78018106]
[1764729379725,0.7003359,887.76,885.84,2.78018106]
[1764729380026,0.7003359,887.75,885.84,2.78018106]
[1764729380225,0.7003359,887.74,885.84,2.78018106]
[1764729380424,0.7003359,887.73,885.84,2.78018106]
[1764729380621,0.7003359,887.72,885.83,2.78018106]
[1764729380825,0.19611269,887.85,885.83,2.78018106]
[1764729381021,0.70019907,887.76,885.83,2.78018106]
[1764729381225,0.70019907,887.75,885.83,2.78018106]
[1764729381524,0.70019907,887.74,885.83,2.78018106]
[1764729381825,0.70019907,887.74,885.51,3.89225349]
[1764729381826,0.70019907,887.73,885.81,2.78018106]
[1764729382025,0.70019907,887.72,885.81,2.78018106]
[1764729382326,0.70019907,887.71,885.78,2.78018106]
[1764729382527,0.70019907,887.7,885.78,2.78018106]
[1764729382724,0.70019907,887.69,885.78,2.78018106]
[1764729382924,0.19611269,887.85,885.78,2.78018106]
[1764729383128,0.69952562,887.84,885.78,2.78018106]
[1764729383323,0.69952562,887.83,885.76,2.78018106]
[1764729383527,0.69952562,887.82,885.76,2.78018106]
[1764729383827,0.69952562,887.81,885.76,2.78018106]
[1764729384029,0.69952562,887.8,885.76,2.78018106]
[1764729384225,0.69952562,887.79,885.66,2.78018106]
[1764729384430,0.69952562,887.78,885.66,2.78018106]
[1764729384624,0.69952562,887.77,885.66,2.78018106]
[1764729384935,0.69952562,887.77,885.36,3.89225349]
[1764729384936,0.69952562,887.76,885.63,2.78018106]
[1764729385129,0.69952562,887.75,885.63,2.78018106]
[1764729385328,0.69952562,887.74,885.63,2.78018106]
[1764729385624,0.69952562,887.73,885.63,2.78018106]
[1764729385828,0.69952562,887.72,885.63,2.78018106]
[1764729386028,0.69952562,887.71,885.63,2.78018106]
[1764729386228,0.69952562,887.7,885.63,2.78018106]
[1764729386428,0.69952562,887.69,885.57,2.78018106]
[1764729386629,0.69952562,887.68,885.57,2.78018106]
[1764729386829,0.69952562,887.67,885.57,2.78018106]
[1764729387032,0.69952562,887.66,885.57,2.78018106]
[1764729387329,0.69952562,887.65,885.57,2.78018106]
[1764729387530,0.69952562,887.64,885.57,2.78018106]
[1764729387733,0.69952562,887.63,885.57,2.78018106]
[1764729387930,0.69952562,887.62,885.56,2.78018106]
[1764729388132,0.69952562,887.61,885.56,2.78018106]
[1764729388331,0.69952562,887.6,885.55,2.78018106]
[1764729388530,0.69952562,887.59,885.55,2.78018106]
[1764729388733,0.69952562,887.58,885.55,2.78018106]
[1764729388932,0.69952562,887.57,885.55,2.78018106]
[1764729389137,0.69952562,887.56,885.55,2.78018106]
[1764729389334,0.69952562,887.55,885.55,2.78018106]
[1764729389538,0.8419194,887.71,885.15,3.89225349]
[1764729389539,0.69952562,887.54,885.47,2.78018106]
[1764729389834,0.69952562,887.53,885.47,2.78018106]
[1764729390134,0.69952562,887.52,885.47,2.78018106]
[1764729390337,0.69952562,887.51,885.47,2.78018106]
[1764729390538,0.69952562,887.5,885.46,2.78018106]
[1764729390838,0.69952562,887.49,885.46,2.78018106]
[1764729391036,0.69952562,887.48,885.42,2.78018106]
[1764729391233,0.69952562,887.47,885.42,2.78018106]
[1764729391434,0.69952562,887.46,885.42,2.78018106]
[1764729391635,0.69952562,887.46,885.1,3.89225349]
[1764729391636,0.69952562,887.45,885.41,2.78018106]
[1764729391839,0.8419194,887.73,885.41,2.78018106]
[1764729392035,0.7030109,887.72,885.49,2.78018106]
[1764729392241,0.7030109,887.71,885.49,2.78018106]
[1764729392441,0.7030109,887.7,885.49,2.78018106]
[1764729392644,0.7030109,887.69,885.49,2.78018106]
[1764729392838,0.7030109,887.68,885.49,2.78018106]
[1764729393139,0.7030109,887.67,885.49,2.78018106]
[1764729393342,0.7030109,887.66,885.49,2.78018106]
[1764729393540,0.7030109,887.65,885.49,2.78018106]
[1764729393841,0.7030109,887.64,885.49,2.78018106]
[1764729394038,0.7030109,887.63,885.49,2.78018106]
[1764729394239,0.7030109,887.62,885.49,2.78018106]
[1764729394438,0.7030109,887.61,885.49,2.78018106]
[1764729394644,0.7030109,887.6,885.5,2.78018106]
[1764729394840,0.7030109,887.59,885.5,2.78018106]
[1764729395044,0.7030109,887.58,885.5,2.78018106]
[1764729395243,0.7030109,887.57,885.54,2.78018106]
[1764729395442,0.7030109,887.56,885.54,2.78018106]
[1764729395645,0.7030109,887.55,885.49,2.78018106]
[1764729395845,0.7030109,887.54,885.49,2.78018106]
[1764729396046,0.7030109,887.53,885.49,2.78018106]
[1764729396247,0.7030109,887.52,885.54,2.78018106]
[1764729396543,0.7030109,887.51,885.54,2.78018106]
[1764729396747,0.7030109,887.5,885.51,2.78018106]
[1764729396942,0.7030109,887.49,885.51,2.78018106]
[1764729397145,0.7030109,887.48,885.41,2.78018106]
[1764729397345,0.7030109,887.47,885.41,2.78018106]
[1764729397543,0.7030109,887.46,885.42,2.78018106]
[1764729397746,0.7030109,887.45,885.42,2.78018106]
[1764729397945,0.7030109,887.44,885.42,2.78018106]
[1764729398146,0.7030109,887.43,885.4,2.78018106]
[1764729398346,0.8419194,887.38,885.4,2.78018106]
[1764729398547,0.8419194,887.35,885.2,2.78018106]
[1764729398752,0.7030109,887.34,885.2,2.78018106]
[1764729398949,0.7030109,887.33,885.17,2.78018106]
[1764729399149,0.7030109,887.32,885.17,2.78018106]
[1764729399450,0.7030109,887.32,885.08,0.19616133]
[1764729399451,0.7030109,887.31,885.18,2.78018106]
[1764729399650,0.7030109,887.3,885.18,2.78018106]
[1764729399849,0.8419194,887.18,885.18,2.78018106]
[1764729400055,0.7030109,887.17,885.08,0.19616133]
[1764729400245,0.7030109,887.16,885.08,0.19616133]
[1764729400445,0.7030109,887.15,885.08,0.19616133]
[1764729400649,0.7030109,887.14,885.08,0.19616133]
[1764729400945,0.7030109,887.13,885.08,0.19616133]
[1764729401148,0.7030109,887.12,885.08,0.19616133]
[1764729401345,0.7030109,887.11,885.08,0.19616133]
[1764729401549,0.7030109,887.1,885.08,0.19616133]
[1764729401750,0.7030109,887.09,885.08,0.19616133]
[1764729401951,0.7030109,887.08,885.08,0.19616133]
[1764729402146,0.7030109,887.07,885.08,0.19616133]
[1764729402350,0.7030109,887.06,885.08,0.19616133]
[1764729402552,0.7030109,887.05,885.08,0.19616133]
[1764729402747,0.7030109,887.04,885.08,0.19616133]
[1764729403051,0.7030109,887.03,885.08,0.19616133]
[1764729403252,0.7030109,887.02,885.08,0.19616133]
[1764729403452,0.7030109,887.01,885.08,0.19616133]
[1764729403649,5.93546842,887.8,885.08,0.19616133]
[1764729403650,0.7030109,887.0,885.08,0.19616133]
[1764729403947,0.7030109,886.99,885.08,0.19616133]
[1764729404150,0.7030109,886.98,885.08,0.19616133]
[1764729404348,1.11707841,887.41,885.08,0.19616133]
[1764729404548,0.8383524,887.24,885.08,0.19616133]
[1764729404750,0.75845685,887.23,885.08,0.19616133]
[1764729404949,0.75845685,887.22,885.08,0.19616133]
[1764729405148,0.75845685,887.21,885.08,0.19616133]
[1764729405352,0.75845685,887.2,885.08,0.19616133]
[1764729405553,0.75845685,887.19,885.08,0.19616133]
[1764729405750,0.75845685,887.18,885.08,0.19616133]
[1764729405953,0.75845685,887.17,885.08,0.19616133]
[1764729406153,0.75845685,887.16,885.08,0.19616133]
[1764729406349,0.75845685,887.15,885.08,0.19616133]
[1764729406548,0.75845685,887.14,885.08,0.19616133]
[1764729406754,0.75845685,887.13,885.08,0.19616133]
[1764729406951,0.75845685,887.12,885.08,0.19616133]
[1764729407253,0.75845685,887.11,885.08,0.19616133]
[1764729407451,0.75845685,887.1,885.08,0.19616133]
[1764729407649,0.75845685,887.09,885.08,0.19616133]
[1764729407851,0.75845685,887.08,885.08,0.19616133]
[1764729408054,0.75845685,887.07,885.08,0.19616133]
[1764729408350,0.8383524,887.4,885.08,0.19616133]
[1764729408551,0.75820896,887.39,885.08,0.19616133]
[1764729408755,0.75820896,887.38,885.08,0.19616133]
[1764729408950,1.59656136,887.37,885.16,2.78018106]
[1764729409151,1.59656136,887.36,885.16,2.78018106]
[1764729409350,0.8383524,887.27,885.08,0.19616133]
[1764729409550,0.75820896,887.26,885.08,0.19616133]
[1764729409754,0.75820896,887.25,885.08,0.19616133]
[1764729409949,0.75820896,887.24,885.08,0.19616133]
[1764729410150,0.75820896,887.23,885.08,0.19616133]
[1764729410348,0.75820896,887.22,885.08,0.19616133]
[1764729410554,0.75820896,887.21,885.08,0.19616133]
[1764729410755,0.75820896,887.2,885.08,0.19616133]
[1764729411054,0.75820896,887.19,885.08,0.19616133]
[1764729411254,0.75820896,887.18,885.08,0.19616133]
[1764729411454,0.75820896,887.17,885.08,2.97634239]
[1764729411651,0.75820896,887.16,885.08,2.97634239]
[1764729411854,0.75820896,887.15,885.08,2.97634239]
[1764729412057,0.75820896,887.14,885.08,2.97634239]
[1764729412252,0.75820896,887.13,885.08,2.97634239]
[1764729412556,0.75820896,887.12,885.15,2.78018106]
[1764729412755,0.75820896,887.11,885.15,2.78018106]
[1764729412957,0.75820896,887.1,885.17,2.78018106]
[1764729413156,0.8383524,887.42,885.17,2.78018106]
[1764729413452,0.74700239,887.41,885.32,2.78018106]
[1764729413659,0.8383524,887.53,885.32,2.78018106]
[1764729413660,0.74700239,887.4,885.32,2.78018106]
[1764729413859,0.74700239,887.39,885.32,2.78018106]
[1764729414054,0.74700239,887.38,885.33,2.78018106]
[1764729414252,0.74700239,887.37,885.33,2.78018106]
[1764729414456,0.74700239,887.36,885.21,2.78018106]
[1764729414655,0.74700239,887.35,885.21,2.78018106]
[1764729414855,0.74700239,887.34,885.21,2.78018106]
[1764729415053,0.74700239,887.33,885.21,2.78018106]
[1764729415358,0.74700239,887.32,885.23,2.78018106]
[1764729415658,0.74700239,887.31,885.23,2.78018106]
[1764729415958,0.74700239,887.3,885.23,2.78018106]
[1764729416154,0.74700239,887.29,885.23,2.78018106]
[1764729416458,0.74700239,887.28,885.24,2.78018106]
[1764729416658,0.74700239,887.27,885.24,2.78018106]
[1764729416959,0.74700239,887.26,885.24,2.78018106]
[1764729417258,0.74700239,887.25,885.24,2.78018106]
[1764729417458,0.74700239,887.24,885.3,2.78018106]
[1764729417659,0.74700239,887.23,885.3,2.78018106]
[1764729417852,0.74700239,887.22,885.3,2.78018106]
[1764729418057,0.74700239,887.21,885.3,2.78018106]
[1764729418256,0.8383524,887.52,885.3,2.78018106]
[1764729418458,0.74729254,887.51,885.4,2.78018106]
[1764729418657,0.74729254,887.5,885.4,2.78018106]
[1764729418957,0.74729254,887.49,885.43,2.78018106]
[1764729419261,0.74729254,887.48,885.43,2.78018106]